bitfinex/quotes_SOLUSD_20250617
["timestamp","ask_amount","ask_price","bid_price","bid_amount"]
[1750174974981,11.55026713,147.69,147.64,11.55026713]
[1750174975208,11.55026713,147.69,147.65,11.55026713]
[1750174975367,176.93726891,147.73,147.68,11.55026713]
[1750174975368,145.53726891,147.73,147.68,11.55026713]
[1750174975557,145.53726891,147.73,147.69,11.55026713]
[1750174975754,157.08753604,147.73,147.69,11.55026713]
[1750174976154,163.85666656,147.73,147.69,11.55026713]
[1750174976698,163.85666656,147.73,147.68,11.55026713]
[1750174977203,11.55026713,147.7,147.61,1.5366]
[1750174977513,11.55026713,147.7,147.62,18.32441697]
[1750174977514,11.55026713,147.66,147.62,18.32441697]
[1750174977667,31.38,147.7,147.62,18.32441697]
[1750174977668,31.38,147.7,147.63,11.55026713]
[1750174977976,11.55026713,147.68,147.63,11.55026713]
[1750174978194,31.38,147.7,147.64,11.55026713]
[1750174978377,11.55026713,147.71,147.66,11.55026713]
[1750174978577,11.55026713,147.7,147.66,11.55026713]
[1750174978786,11.55026713,147.67,147.61,1.5366]
[1750174979084,11.55026713,147.67,147.63,26.0]
[1750174979455,11.55026713,147.66,147.63,26.0]
[1750174980191,31.38,147.68,147.63,26.0]
[1750174980583,11.55026713,147.66,147.62,11.55026713]
[1750174980888,11.55026713,147.65,147.6,39.07846634]
[1750174981082,11.55026713,147.65,147.6,37.55026713]
[1750174981585,11.55026713,147.65,147.61,11.55026713]
[1750174982090,11.55026713,147.66,147.61,11.55026713]
[1750174982274,11.55026713,147.66,147.62,11.55026713]
[1750174982591,11.55026713,147.69,147.6,61.40502511]
[1750174982777,145.53726891,147.72,147.67,11.55026713]
[1750174982778,176.91726891,147.72,147.67,11.55026713]
[1750174982976,11.55026713,147.71,147.67,11.55026713]
[1750174983289,145.53726891,147.72,147.68,11.55026713]
[1750174983590,145.53726891,147.72,147.7,11.55026713]
[1750174983791,19.85026713,147.75,147.7,11.55026713]
[1750174983966,8.3,147.75,147.71,11.55026713]
[1750174984283,11.55026713,147.75,147.71,11.55026713]
[1750174984482,157.08753604,147.76,147.71,11.55026713]
[1750174984686,11.55026713,147.75,147.71,11.55026713]
[1750174984888,157.08753604,147.76,147.72,18.31983117]
[1750174985670,145.53726891,147.76,147.72,18.31983117]
[1750174985873,157.08753604,147.76,147.72,18.31983117]
[1750174986203,157.08753604,147.76,147.72,6.76956404]
[1750174986383,145.53726891,147.76,147.72,6.76956404]
[1750174986685,157.08753604,147.76,147.72,6.76956404]
[1750174987079,157.08753604,147.76,147.72,18.31983117]
[1750174987294,145.53726891,147.76,147.72,18.31983117]
[1750174987597,145.53726891,147.76,147.73,11.55026713]
[1750174988397,0.18,147.78,147.74,11.55026713]
[1750174988597,11.73026713,147.78,147.74,11.55026713]
[1750174988766,0.18,147.78,147.72,49.69347414]
[1750174988970,6.91669063,147.78,147.73,6.73669063]
[1750174989273,0.18,147.78,147.74,6.73669063]
[1750174989982,0.18,147.78,147.75,6.73669063]
[1750174990182,0.18,147.78,147.76,6.73669063]
[1750174990498,0.18,147.78,147.75,26.0]
[1750174990803,0.18,147.78,147.75,32.73669063]
[1750174991184,0.18,147.78,147.76,6.76773145]
[1750174991585,136.58176751,147.8,147.76,6.76773145]
[1750174992479,136.58176751,147.8,147.76,13.50442208]
[1750174993584,129.84507688,147.79,147.75,39.50472735]
[1750174993790,136.58176751,147.79,147.75,39.50472735]
[1750174994993,129.84507688,147.79,147.75,39.50472735]
[1750174995188,129.84507688,147.79,147.77,6.73669063]
[1750174995908,129.84507688,147.79,147.76,6.73669063]
[1750174996285,129.84507688,147.79,147.77,6.73669063]
[1750174996692,129.84507688,147.79,147.76,6.73669063]
[1750174997086,27.12048297,147.86,147.79,32.7661077]
[1750174997421,6.73669063,147.82,147.79,26.0]
[1750174997588,6.73669063,147.81,147.77,6.76713714]
[1750174997982,6.73669063,147.82,147.77,13.50382777]
[1750174998187,6.73669063,147.82,147.78,6.73669063]
[1750174998610,3.36245496,147.83,147.78,6.73669063]
[1750174998611,10.09914559,147.83,147.78,6.73669063]
[1750174998816,6.73669063,147.83,147.79,6.73669063]
[1750174998986,6.73669063,147.83,147.78,6.73669063]
[1750174999185,6.73669063,147.83,147.79,6.76635766]
[1750175000022,6.73669063,147.82,147.79,6.76635766]
[1750175000224,6.76413943,147.84,147.79,6.76635766]
[1750175000404,6.73669063,147.82,147.79,6.76635766]
[1750175000612,6.73669063,147.82,147.77,6.76727346]
[1750175000813,6.73669063,147.82,147.78,6.73669063]
[1750175001236,6.73669063,147.83,147.79,6.73669063]
[1750175001537,6.73669063,147.84,147.8,6.73669063]
[1750175001709,136.60887843,147.85,147.8,6.73669063]
[1750175001710,129.84507688,147.85,147.8,6.73669063]
[1750175001898,6.73669063,147.84,147.8,6.73669063]
[1750175002092,136.58176751,147.85,147.81,6.73669063]
[1750175002325,129.84507688,147.83,147.81,6.73669063]
[1750175002730,129.84507688,147.83,147.81,13.50200343]
[1750175003810,129.84507688,147.83,147.8,39.50248396]
[1750175004104,129.84507688,147.83,147.81,6.73669063]
[1750175004315,129.84507688,147.83,147.8,32.76579333]
[1750175004519,129.84507688,147.83,147.81,6.73669063]
[1750175005442,129.84507688,147.83,147.8,32.76579333]
[1750175005741,129.84507688,147.83,147.81,6.73669063]
[1750175005925,129.84507688,147.83,147.8,32.76579333]
[1750175006125,129.84507688,147.83,147.8,39.50248396]
[1750175006437,129.84507688,147.83,147.8,32.76579333]
[1750175006606,129.84507688,147.83,147.8,39.50248396]
[1750175008910,6.73669063,147.82,147.78,6.73669063]
[1750175009240,6.73669063,147.82,147.78,13.50343677]
[1750175010705,6.73669063,147.82,147.77,6.76727346]
[1750175010946,6.73669063,147.82,147.78,6.73669063]
[1750175011741,6.73669063,147.82,147.78,13.50330718]
[1750175012629,6.73669063,147.82,147.78,6.76661655]
[1750175012838,6.73669063,147.82,147.77,6.76709911]
[1750175013128,6.73669063,147.82,147.78,6.73669063]
[1750175013345,136.60974897,147.83,147.77,13.50378974]
[1750175013636,136.58176751,147.82,147.78,6.73669063]
[1750175013804,136.58176751,147.82,147.78,13.50305768]
[1750175014752,136.58176751,147.82,147.78,6.76636705]
[1750175014913,136.58176751,147.82,147.78,13.50305768]
[1750175016655,6.73669063,147.81,147.77,6.76727346]
[1750175016826,136.58176751,147.82,147.77,13.50396409]
[1750175017210,6.73669063,147.81,147.77,6.76727346]
[1750175017619,136.61011203,147.82,147.77,13.50396409]
[1750175017831,6.73669063,147.81,147.77,13.50396409]
[1750175018278,6.73669063,147.81,147.77,6.73669063]
[1750175018460,143.34680266,147.82,147.78,6.73669063]
[1750175018649,129.84507688,147.82,147.78,6.73669063]
[1750175018814,129.84507688,147.82,147.78,13.50348681]
[1750175019246,129.84507688,147.81,147.78,13.50348681]
[1750175019448,129.84507688,147.81,147.79,6.73669063]
[1750175019823,129.84507688,147.81,147.78,6.76679618]
[1750175020153,129.84507688,147.81,147.79,6.73669063]
[1750175020849,129.84507688,147.81,147.78,6.73669063]
[1750175022137,129.84507688,147.81,147.79,6.73669063]
[1750175022815,129.84507688,147.81,147.8,6.73669063]
[1750175024320,129.84507688,147.81,147.8,13.50259049]
[1750175026132,129.84507688,147.85,147.8,13.50259049]
[1750175026324,129.84507688,147.85,147.84,6.73669063]
[1750175027061,129.84507688,147.85,147.83,6.73669063]
[1750175028720,129.84507688,147.85,147.84,6.73669063]
[1750175029033,129.84507688,147.85,147.8,32.76589986]
[1750175029237,136.58176751,147.85,147.8,32.76589986]
[1750175029424,129.84507688,147.85,147.8,6.76589986]
[1750175029638,129.84507688,147.85,147.82,6.73669063]
[1750175029881,129.84507688,147.85,147.83,6.73669063]
[1750175030036,129.84507688,147.85,147.84,6.73669063]
[1750175030959,129.84507688,147.85,147.83,6.73669063]
[1750175031850,129.84507688,147.85,147.84,6.73669063]
[1750175032044,129.84507688,147.85,147.82,6.76468149]
[1750175032461,129.84507688,147.85,147.8,6.76589986]
[1750175032649,6.73669063,147.83,147.79,6.73669063]
[1750175033049,136.58176751,147.84,147.8,6.73669063]
[1750175033434,129.84507688,147.84,147.8,6.73669063]
[1750175033635,136.58176751,147.84,147.8,6.73669063]
[1750175034047,143.34601754,147.84,147.8,6.73669063]
[1750175034554,129.84507688,147.84,147.83,6.73669063]
[1750175036146,32.73669063,147.9,147.83,13.50121745]
[1750175036147,129.84507688,147.9,147.83,13.50121745]
[1750175036463,129.84507688,147.89,147.87,6.73669063]
[1750175036672,129.84507688,147.89,147.83,6.76452682]
[1750175036832,129.84507688,147.89,147.87,6.73669063]
[1750175037037,129.84507688,147.89,147.83,6.76452682]
[1750175037238,129.84507688,147.89,147.87,6.73669063]
[1750175038168,129.84507688,147.89,147.86,6.73669063]
[1750175038467,6.73669063,147.87,147.82,6.73669063]
[1750175038674,6.73669063,147.86,147.82,6.73669063]
[1750175039255,6.76315433,147.86,147.82,6.73669063]
[1750175039559,6.76315433,147.86,147.83,6.73669063]
[1750175040457,6.76315433,147.86,147.81,32.76523794]
[1750175040655,6.76315433,147.86,147.83,6.73669063]
[1750175040874,13.49984496,147.86,147.82,6.73669063]
[1750175041180,6.76315433,147.86,147.83,6.73669063]
[1750175041479,53.52427678,147.88,147.81,26.0]
[1750175041480,6.76241009,147.88,147.85,6.73669063]
[1750175041647,136.58176751,147.87,147.81,26.0]
[1750175041972,6.73669063,147.85,147.77,32.73669063]
[1750175042144,129.84507688,147.84,147.82,6.73669063]
[1750175042343,129.84507688,147.84,147.83,6.73669063]
[1750175043872,129.84507688,147.84,147.81,6.76544212]
[1750175044176,136.6093134,147.84,147.81,32.73669063]
[1750175044374,136.6093134,147.84,147.78,6.76681553]
[1750175044674,129.84507688,147.83,147.81,6.73669063]
[1750175044876,129.84507688,147.82,147.78,26.0]
[1750175045179,129.84507688,147.82,147.79,6.73669063]
[1750175045362,129.84507688,147.82,147.8,6.73669063]
[1750175045554,129.84507688,147.82,147.81,6.73669063]
[1750175045973,129.84507688,147.86,147.81,32.73669063]
[1750175046280,129.84507688,147.85,147.81,26.0]
[1750175046649,129.84507688,147.85,147.8,32.76552322]
[1750175047156,136.608878,147.85,147.8,26.0]
[1750175047360,143.34556863,147.85,147.81,6.73669063]
[1750175047550,129.84507688,147.84,147.81,6.73669063]
[1750175047756,136.58176751,147.83,147.78,6.73669063]
[1750175047953,6.73669063,147.82,147.78,6.73669063]
[1750175048667,136.58176751,147.83,147.78,6.73669063]
[1750175048857,6.76498444,147.82,147.77,32.76705502]
[1750175049180,6.76498444,147.82,147.77,26.0]
[1750175049181,6.73669063,147.8,147.77,26.0]
[1750175049357,129.84507688,147.81,147.77,26.0]
[1750175049554,37.86498444,147.82,147.74,6.73669063]
[1750175049555,6.73669063,147.78,147.74,6.73669063]
[1750175049755,6.73669063,147.79,147.74,6.73669063]
[1750175050151,6.73669063,147.79,147.75,6.73669063]
[1750175050865,13.50304829,147.79,147.75,6.73669063]
[1750175051065,6.73669063,147.79,147.75,6.73669063]
[1750175051680,160.94507688,147.8,147.76,6.73669063]
[1750175051858,160.94507688,147.8,147.78,6.73669063]
[1750175051859,129.84507688,147.8,147.78,6.73669063]
[1750175053266,129.84507688,147.8,147.79,6.73669063]
[1750175054374,129.84507688,147.8,147.78,6.76672592]
[1750175054676,129.84507688,147.8,147.79,6.73669063]
[1750175054879,129.84507688,147.8,147.79,13.50304829]
[1750175058989,129.84507688,147.85,147.79,30.56110403]
[1750175059199,129.84507688,147.85,147.84,6.73669063]
[1750175059368,129.84507688,147.89,147.84,6.73669063]
[1750175059692,129.84507688,147.88,147.86,6.73669063]
[1750175060068,129.84507688,147.88,147.87,6.73669063]
[1750175060274,129.84507688,147.88,147.84,6.73669063]
[1750175060584,129.84507688,147.88,147.87,6.73669063]
[1750175060803,129.84507688,147.88,147.85,6.73669063]
[1750175060955,129.84507688,147.88,147.86,6.73669063]
[1750175061889,129.84507688,147.88,147.87,6.73669063]
[1750175062385,129.84507688,147.88,147.84,32.7638891]
[1750175062560,129.84507688,147.88,147.85,6.73669063]
[1750175062760,129.84507688,147.88,147.87,6.73669063]
[1750175064273,14.60735825,147.91,147.88,6.76223965]
[1750175064468,14.60735825,147.91,147.9,6.73669063]
[1750175065891,14.60735825,147.91,147.88,6.76223965]
[1750175066063,14.60735825,147.91,147.88,6.73669063]
[1750175066384,14.60735825,147.91,147.87,32.76254735]
[1750175066600,14.60735825,147.91,147.88,6.73669063]
[1750175067095,14.60735825,147.91,147.89,6.73669063]
[1750175068790,14.60735825,147.91,147.88,6.7621369]
[1750175068791,14.60735825,147.91,147.9,6.73669063]
[1750175069708,129.84507688,147.9,147.81,8.2658]
[1750175069992,129.84507688,147.9,147.88,6.73669063]
[1750175070301,18.79181043,147.89,147.81,1.6212]
[1750175070595,6.76361176,147.85,147.82,6.73669063]
[1750175070827,18.64964886,147.87,147.82,6.73669063]
[1750175070991,129.84507688,147.88,147.82,6.76494716]
[1750175071586,129.84507688,147.88,147.87,6.73669063]
[1750175071985,129.84507688,147.88,147.86,6.73669063]
[1750175072180,129.84507688,147.88,147.87,6.73669063]
[1750175073104,6.18292381,147.9,147.87,6.73669063]
[1750175073304,6.18292381,147.9,147.89,6.73669063]
[1750175073599,25.40948,147.94,147.89,6.73669063]
[1750175073799,30.34661202,147.94,147.91,6.73669063]
[1750175074176,30.34661202,147.94,147.87,26.0]
[1750175074378,4.93713202,147.94,147.91,6.73669063]
[1750175074604,19.75627732,147.95,147.91,6.73669063]
[1750175074921,4.93713202,147.95,147.92,6.73669063]
[1750175075117,6.75820352,147.97,147.92,6.73669063]
[1750175075118,6.73669063,147.97,147.92,6.73669063]
[1750175075300,6.73669063,147.96,147.92,6.73669063]
[1750175075508,11.69480197,147.98,147.92,6.73669063]
[1750175075702,6.73669063,147.96,147.92,6.73669063]
[1750175076297,6.75844405,147.97,147.92,6.73669063]
[1750175076492,6.73669063,147.96,147.92,6.73669063]
[1750175076812,18.64964886,147.96,147.91,26.0]
[1750175077025,6.73669063,147.95,147.91,6.73669063]
[1750175077913,25.40860736,147.96,147.91,6.73669063]
[1750175078427,6.73669063,147.95,147.91,6.73669063]
[1750175078722,129.84507688,147.94,147.91,6.73669063]
[1750175080023,136.60461096,147.94,147.89,6.76163138]
[1750175080229,136.60461096,147.94,147.91,6.73669063]
[1750175081735,129.84507688,147.94,147.92,6.73669063]
[1750175081901,49.58964886,147.97,147.91,6.73669063]
[1750175081902,129.84507688,147.93,147.91,6.73669063]
[1750175082239,129.84507688,147.93,147.89,6.76160941]
[1750175082436,129.84507688,147.93,147.91,6.73669063]
[1750175083629,129.84507688,147.93,147.89,6.76160941]
[1750175083813,129.84507688,147.93,147.91,6.73669063]
[1750175084338,129.84507688,147.93,147.92,6.73669063]
[1750175084624,129.84507688,147.93,147.89,6.76160941]
[1750175084831,129.84507688,147.93,147.91,6.73669063]
[1750175085214,129.84507688,147.93,147.92,6.73669063]
[1750175085618,129.84507688,147.93,147.89,6.76160941]
[1750175085800,129.84507688,147.93,147.92,6.73669063]
[1750175086003,129.84507688,147.93,147.89,6.76160941]
[1750175086404,129.84507688,147.93,147.92,6.73669063]
[1750175086944,129.84507688,147.93,147.89,6.76160941]
[1750175087114,129.84507688,147.93,147.92,6.73669063]
[1750175087742,129.84507688,147.93,147.92,13.49710166]
[1750175088315,18.79181043,147.99,147.92,13.49710166]
[1750175088316,6.75749414,147.99,147.92,13.49710166]
[1750175088508,25.38633949,147.98,147.91,32.76069188]
[1750175088711,25.38633949,147.98,147.93,6.73669063]
[1750175088931,6.73669063,147.96,147.87,17.04788137]
[1750175089132,6.73669063,147.96,147.86,18.933972]
[1750175089133,6.73669063,147.9,147.86,6.73669063]
[1750175089322,6.73669063,147.88,147.84,6.73669063]
[1750175089526,30.9,147.89,147.85,6.73669063]
[1750175089732,160.72507688,147.9,147.87,6.73669063]
[1750175089936,160.72507688,147.9,147.84,6.73669063]
[1750175089937,160.72507688,147.9,147.88,6.73669063]
[1750175090241,167.46176751,147.9,147.84,26.0]
[1750175090416,167.46176751,147.9,147.86,6.73669063]
[1750175090615,167.48677444,147.9,147.84,32.7638328]
[1750175090826,174.22346507,147.9,147.86,6.73669063]
[1750175091015,160.72507688,147.9,147.86,6.73669063]
[1750175091236,167.48641183,147.9,147.84,6.7638328]
[1750175091550,167.48641183,147.9,147.84,32.7638328]
[1750175091754,174.22310246,147.9,147.85,6.73669063]
[1750175092121,6.73669063,147.89,147.84,13.50052343]
[1750175092319,6.73669063,147.89,147.85,6.73669063]
[1750175092649,13.49848357,147.89,147.85,6.73669063]
[1750175094337,6.73669063,147.89,147.85,13.50028991]
[1750175094527,174.22326597,147.9,147.86,6.73669063]
[1750175095648,167.48657534,147.9,147.85,6.73669063]
[1750175095847,6.73669063,147.89,147.85,6.73669063]
[1750175096741,167.48657534,147.9,147.82,6.76486629]
[1750175096742,6.73669063,147.88,147.82,6.76486629]
[1750175096940,6.73669063,147.86,147.82,26.0]
[1750175097123,6.73669063,147.86,147.82,32.73669063]
[1750175097642,6.76315433,147.86,147.82,32.73669063]
[1750175097849,13.49984496,147.86,147.82,32.73669063]
[1750175098444,6.76315433,147.86,147.82,26.0]
[1750175098741,13.49984496,147.86,147.82,32.73669063]
[1750175099249,6.73669063,147.85,147.79,6.76624724]
[1750175099459,6.73669063,147.84,147.8,6.73669063]
[1750175099619,6.73669063,147.83,147.77,1.5907]
[1750175099821,6.73669063,147.83,147.79,6.73669063]
[1750175100347,37.57669063,147.84,147.8,6.73669063]
[1750175100713,37.60433139,147.84,147.8,6.73669063]
[1750175100919,6.73669063,147.83,147.79,6.73669063]
[1750175101119,6.73669063,147.83,147.76,6.73669063]
[1750175101120,6.73669063,147.8,147.76,6.73669063]
[1750175101861,6.73669063,147.79,147.73,1.6406]
[1750175102039,6.73669063,147.78,147.74,6.73669063]
[1750175102225,6.73669063,147.78,147.71,6.77002234]
[1750175102427,6.73669063,147.77,147.71,6.77002234]
[1750175102641,6.73669063,147.76,147.72,6.73669063]
[1750175102839,6.73669063,147.77,147.73,6.73669063]
[1750175103830,6.76681553,147.78,147.73,6.73669063]
[1750175104046,13.50350616,147.78,147.74,6.73669063]
[1750175105252,148.49472574,147.79,147.75,6.73669063]
[1750175105421,186.10114698,147.79,147.76,6.73669063]
[1750175105621,192.83783761,147.79,147.75,6.73669063]
[1750175105830,129.84507688,147.79,147.77,6.73669063]
[1750175106148,129.84507688,147.79,147.76,6.73669063]
[1750175106446,129.84507688,147.79,147.77,6.73669063]
[1750175106960,129.84507688,147.79,147.76,6.73669063]
[1750175107164,136.58176751,147.79,147.75,6.73669063]
[1750175107342,129.84507688,147.79,147.76,6.73669063]
[1750175107929,129.84507688,147.79,147.7,6.3131]
[1750175107930,148.49472574,147.78,147.7,6.3131]
[1750175108158,129.84507688,147.77,147.76,6.73669063]
[1750175110839,129.84507688,147.77,147.74,6.76864762]
[1750175111059,129.84507688,147.77,147.76,6.73669063]
[1750175111453,129.84507688,147.77,147.75,6.73669063]
[1750175112551,136.61238935,147.77,147.73,32.73669063]
[1750175112768,129.84507688,147.76,147.73,32.73669063]
[1750175112966,129.84507688,147.76,147.74,6.73669063]
[1750175113152,129.84507688,147.76,147.73,32.73669063]
[1750175113950,129.84507688,147.76,147.73,26.0]
[1750175114152,129.84507688,147.76,147.72,13.50623195]
[1750175114359,129.84507688,147.76,147.67,6.2925]
[1750175114360,6.73669063,147.74,147.69,8.35768711]
[1750175114672,129.84507688,147.75,147.74,26.0]
[1750175114875,30.78,147.78,147.74,32.73669063]
[1750175115079,69.00327021,147.79,147.75,6.73669063]
[1750175115286,149.0,147.78,147.75,6.73669063]
[1750175115650,149.0,147.77,147.75,6.73669063]
[1750175116153,69.00327021,147.79,147.75,6.73669063]
[1750175116154,149.0,147.76,147.75,6.73669063]
[1750175117345,149.0,147.76,147.74,6.73669063]
[1750175117980,149.0,147.76,147.73,32.76888151]
[1750175117981,149.0,147.76,147.73,26.0]
[1750175118180,155.73669063,147.75,147.7,6.77031805]
[1750175118482,149.0,147.75,147.71,6.73669063]
[1750175119154,155.76821881,147.75,147.71,6.73669063]
[1750175119342,149.0,147.75,147.71,6.73669063]
[1750175119539,162.50489846,147.75,147.71,6.73669063]
[1750175119846,155.76820783,147.75,147.71,6.73669063]
[1750175120179,149.0,147.75,147.71,13.50669234]
[1750175120382,149.0,147.75,147.71,6.77000171]
[1750175120547,149.0,147.75,147.71,13.50669234]
[1750175120894,149.0,147.75,147.71,6.73669063]
[1750175121085,155.76829409,147.75,147.71,6.73669063]
[1750175121456,149.0,147.75,147.71,13.50666264]
[1750175121759,149.0,147.75,147.71,6.76997201]
[1750175122063,149.0,147.75,147.74,6.73669063]
[1750175122468,149.0,147.75,147.73,32.73669063]
[1750175122674,149.0,147.75,147.72,6.73669063]
[1750175122675,155.76819544,147.75,147.72,6.73669063]
[1750175123047,149.0,147.75,147.72,6.73669063]
[1750175123414,155.76828063,147.75,147.72,6.73669063]
[1750175123545,155.76828063,147.75,147.7,32.77028406]
[1750175123747,149.0,147.74,147.72,6.73669063]
[1750175123945,149.0,147.74,147.7,32.77028406]
[1750175123946,149.0,147.74,147.7,26.0]
[1750175124146,149.0,147.74,147.71,6.73669063]
[1750175124690,149.0,147.74,147.73,6.73669063]
[1750175124871,149.0,147.74,147.73,11.54717663]
[1750175130392,149.0,147.74,147.73,18.31628243]
[1750175130698,6.76654008,147.79,147.73,18.31628243]
[1750175130939,6.76654008,147.79,147.77,11.54717663]
[1750175131081,6.76654008,147.79,147.73,6.7691058]
[1750175131280,37.48654008,147.79,147.77,11.54717663]
[1750175131594,37.48654008,147.79,147.72,32.76956404]
[1750175131804,37.48654008,147.79,147.76,11.54717663]
[1750175132090,18.64964886,147.78,147.76,11.54717663]
[1750175132400,18.64964886,147.78,147.71,6.76994389]
[1750175132401,18.64964886,147.78,147.75,11.54717663]
[1750175132799,18.64964886,147.78,147.76,11.54717663]
[1750175133171,6.76727346,147.77,147.75,11.54717663]
[1750175134679,6.76727346,147.77,147.74,11.54717663]
[1750175134878,6.76727346,147.77,147.75,11.54717663]
[1750175135684,6.76727346,147.77,147.71,6.76994389]
[1750175135685,6.76727346,147.77,147.74,11.54717663]
[1750175135921,6.76727346,147.77,147.69,1.5869]
[1750175135922,179.19682549,147.76,147.69,1.5869]
[1750175136212,179.19682549,147.76,147.65,1.5006]
[1750175136213,30.19682549,147.74,147.65,1.5006]
[1750175136381,54.29576863,147.74,147.65,1.5006]
[1750175136577,8.37087346,147.77,147.73,11.54717663]
[1750175136812,4.96844656,147.76,147.7,0.42648471]
[1750175137116,6.76706878,147.78,147.75,11.54717663]
[1750175137321,6.76706878,147.78,147.77,11.54717663]
[1750175137616,6.76706878,147.78,147.73,6.76910128]
[1750175137827,6.76706878,147.78,147.77,11.54717663]
[1750175138323,11.74285812,147.79,147.77,11.54717663]
[1750175138521,11.73823906,147.8,147.78,11.54717663]
[1750175139016,11.73836755,147.8,147.78,11.54717663]
[1750175139214,11.73908128,147.8,147.78,11.54717663]
[1750175139591,4.97583806,147.79,147.78,11.54717663]
[1750175139784,4.97583806,147.79,147.77,11.54717663]
[1750175139985,11.73908128,147.8,147.77,11.54717663]
[1750175140185,4.97573101,147.79,147.78,11.54717663]
[1750175140381,4.9859225,147.79,147.78,11.54717663]
[1750175140689,9.96797932,147.79,147.78,11.54717663]
[1750175140887,16.73450309,147.79,147.78,11.54717663]
[1750175141425,9.96797932,147.79,147.78,11.54717663]
[1750175141716,9.96727076,147.79,147.78,11.54717663]
[1750175142103,6.76513694,147.82,147.78,11.54717663]
[1750175142304,6.76513694,147.82,147.81,11.54717663]
[1750175142509,16.74357931,147.82,147.81,11.54717663]
[1750175143496,9.97844237,147.82,147.81,11.54717663]
[1750175144691,4.98887954,147.82,147.81,11.54717663]
[1750175144929,9.98651866,147.82,147.81,11.54717663]
[1750175145129,149.0,147.83,147.81,11.54717663]
[1750175145347,155.76465895,147.83,147.82,11.54717663]
[1750175145636,155.76465895,147.83,147.47,42.08829966]
[1750175145637,165.75620733,147.83,147.8,11.54717663]
[1750175145793,21.53872501,147.82,147.78,11.54717663]
[1750175145994,9.99154838,147.81,147.79,11.54717663]
[1750175146224,197.95183558,147.83,147.79,11.54717663]
[1750175146413,28.63463129,147.82,147.79,11.54717663]
[1750175146623,9.98498243,147.81,147.79,11.54717663]
[1750175146922,9.98498243,147.8,147.79,11.54717663]
[1750175147102,35.40053115,147.8,147.73,32.4671]
[1750175147307,4.99639157,147.79,147.78,11.54717663]
[1750175147509,9.99175353,147.79,147.78,11.54717663]
[1750175147732,4.99536196,147.79,147.78,11.54717663]
[1750175148119,11.76191571,147.79,147.77,11.54717663]
[1750175148330,11.76191571,147.79,147.73,32.76895611]
[1750175148500,158.98597586,147.78,147.75,11.54717663]
[1750175148705,70.80247268,147.77,147.72,11.54717663]
[1750175148934,30.19682549,147.74,147.65,1.6567]
[1750175149232,30.19682549,147.74,147.68,11.54717663]
[1750175149233,11.54717663,147.72,147.68,11.54717663]
[1750175149440,167.64964886,147.72,147.68,11.54717663]
[1750175149601,167.64964886,147.72,147.69,11.54717663]
[1750175150159,6.77002234,147.71,147.69,11.54717663]
[1750175150860,6.77002234,147.71,147.68,11.54717663]
[1750175151152,6.77002234,147.71,147.69,11.54717663]
[1750175151663,174.41934218,147.72,147.69,11.54717663]
[1750175152031,205.01934218,147.72,147.69,11.54717663]
[1750175154056,205.01934218,147.72,147.66,6.77219887]
[1750175154264,205.01934218,147.72,147.68,11.54717663]
[1750175154559,67.56651881,147.72,147.68,11.54717663]
[1750175154853,67.56651881,147.72,147.63,26.0]
[1750175154854,11.54717663,147.7,147.63,26.0]
[1750175155049,11.54717663,147.68,147.64,11.54717663]
[1750175155463,30.6,147.67,147.59,6.77520219]
[1750175155627,11.54717663,147.65,147.61,11.54717663]
[1750175155824,11.54717663,147.62,147.54,1.6201]
[1750175156023,49.24964886,147.63,147.59,11.54717663]
[1750175156242,18.64964886,147.64,147.62,11.54717663]
[1750175156447,37.37297928,147.65,147.62,11.54717663]
[1750175156648,30.6,147.65,147.64,11.54717663]
[1750175156853,30.6,147.65,147.63,11.54717663]
[1750175158561,30.19682549,147.67,147.58,26.0]
[1750175158562,25.42165816,147.67,147.64,11.54717663]
[1750175158765,18.64964886,147.69,147.66,11.54717663]
[1750175159075,18.61632682,147.7,147.68,11.54717663]
[1750175159244,18.64964886,147.69,147.62,1.6219]
[1750175159583,18.64964886,147.69,147.61,49.71113067]
[1750175159584,11.54717663,147.68,147.64,11.54717663]
[1750175159877,60.77682549,147.69,147.65,11.54717663]
[1750175160175,60.77682549,147.69,147.61,32.77460876]
[1750175160341,11.54717663,147.68,147.64,11.54717663]
[1750175160543,6.77185616,147.67,147.64,11.54717663]
[1750175160740,18.64964886,147.66,147.59,6.2738]
[1750175160953,18.64964886,147.66,147.58,1.5509]
[1750175160954,30.19682549,147.66,147.62,11.54717663]
[1750175161181,30.58,147.65,147.63,11.54717663]
[1750175161341,37.35185616,147.67,147.64,11.54717663]
[1750175161854,37.35185616,147.67,147.63,11.54717663]
[1750175162379,37.35185616,147.67,147.59,6.77548543]
[1750175162380,37.35185616,147.67,147.64,11.54717663]
[1750175163048,30.58,147.67,147.65,11.54717663]
[1750175163238,55.1084661,147.69,147.66,11.54717663]
[1750175163569,55.1084661,147.69,147.68,11.54717663]
[1750175163570,10.45881724,147.69,147.68,11.54717663]
[1750175163978,10.45881724,147.69,147.65,1.6312]
[1750175164134,149.0,147.68,147.63,11.54717663]